[Event "*** Titled Tuesday 3|2 Blitz"]
[Site "Chess.com"]
[Date "2016.03.01"]
[Round "6"]
[White "chessdude"]
[Black "GianmarcoVaR"]
[Result "1-0"]
[WhiteElo "2402"]
[BlackElo "2362"]
[TimeControl "180+2"]
[EndTime "18:12:34 PST"]
[Termination "chessdude won by resignation"]

1. Nf3 {[%clk 0:03:01.9]} 1... Nf6 {[%clk 0:02:59.3]} 2. c4 {[%clk 0:03:02]}
2... b6 {[%clk 0:02:59.8]} 3. g3 {[%clk 0:03:02.3]} 3... Bb7 {[%clk 0:03:01]} 4.
Bg2 {[%clk 0:03:03.9]} 4... c5 {[%clk 0:03:02.1]} 5. Nc3 {[%clk 0:03:03.3]} 5...
e6 {[%clk 0:03:02.3]} 6. O-O {[%clk 0:03:03.4]} 6... a6 {[%clk 0:03:03.2]} 7.
Re1 {[%clk 0:03:01.1]} 7... Be7 {[%clk 0:02:48.7]} 8. e4 {[%clk 0:03:01.5]} 8...
O-O {[%clk 0:02:50.1]} 9. d4 {[%clk 0:02:57.7]} 9... cxd4 {[%clk 0:02:49.8]} 10.
Nxd4 {[%clk 0:02:58.6]} 10... Qc7 {[%clk 0:02:41.8]} 11. b3 {[%clk 0:02:35.7]}
11... d6 {[%clk 0:02:37.7]} 12. Bb2 {[%clk 0:02:36]} 12... Nbd7 {[%clk
0:02:36.8]} 13. Qe2 {[%clk 0:02:31.8]} 13... Rac8 {[%clk 0:02:35.2]} 14. Rad1
{[%clk 0:02:30.7]} 14... Rfe8 {[%clk 0:02:35.5]} 15. f4 {[%clk 0:02:31.5]} 15...
Qb8 {[%clk 0:02:35.7]} 16. g4 {[%clk 0:02:27]} 16... e5 {[%clk 0:02:29.2]} 17.
Nf5 {[%clk 0:02:25.2]} 17... exf4 {[%clk 0:02:30.3]} 18. g5 {[%clk 0:02:26.3]}
18... Nxe4 {[%clk 0:01:19.2]} 19. Bxe4 {[%clk 0:02:25.6]} 19... Bf8 {[%clk
0:01:13.1]} 20. Qc2 {[%clk 0:02:15.3]} 20... Ne5 {[%clk 0:01:00.4]} 21. Nd5
{[%clk 0:02:09.7]} 21... b5 {[%clk 0:00:56.2]} 22. Bh1 {[%clk 0:01:47.3]} 22...
bxc4 {[%clk 0:00:49.8]} 23. Nh6+ {[%clk 0:01:37.7]} 23... Kh8 {[%clk 0:00:42.3]}
24. Bxe5 {[%clk 0:01:37.9]} 24... dxe5 {[%clk 0:00:43.1]} 25. Nxf7+ {[%clk
0:01:36.4]} 25... Kg8 {[%clk 0:00:44.6]} 26. g6 {[%clk 0:00:44.6]} 26... hxg6
{[%clk 0:00:44.7]} 27. Qxg6 {[%clk 0:00:43]} 27... Rc6 {[%clk 0:00:43.1]} 28.
Ne7+ {[%clk 0:00:34.8]} 28... Rxe7 {[%clk 0:00:28.8]} 29. Bxc6 {[%clk
0:00:28.5]} 29... Rxf7 {[%clk 0:00:26.9]} 30. Bxb7 {[%clk 0:00:28.2]} 30... Rxb7
{[%clk 0:00:18.1]} 31. Qe6+ {[%clk 0:00:27.5]} 31... Rf7 {[%clk 0:00:18.8]} 32.
Rd7 {[%clk 0:00:25.4]} 32... Bc5+ {[%clk 0:00:10.8]} 33. Kf1 {[%clk 0:00:25.1]}
33... Qf8 {[%clk 0:00:09.4]} 34. Rxe5 {[%clk 0:00:24.3]} 34... cxb3 {[%clk
0:00:07.4]} 35. axb3 {[%clk 0:00:23.9]} 35... Be3 {[%clk 0:00:05.4]} 36. Rf5
{[%clk 0:00:23.5]} 36... Qe8 {[%clk 0:00:03]} 37. Qxe8+ {[%clk 0:00:24]} 1-0

[Event "*** Titled Tuesday 3|2 Blitz"]
[Site "Chess.com"]
[Date "2016.03.01"]
[Round "6"]
[White "Recombinant"]
[Black "Gau_truc_lon"]
[Result "0-1"]
[WhiteElo "2195"]
[BlackElo "2151"]
[TimeControl "180+2"]
[EndTime "18:12:35 PST"]
[Termination "Gau_truc_lon won on time"]

1. d4 {[%clk 0:03:01.9]} 1... d5 {[%clk 0:03:00.3]} 2. c4 {[%clk 0:03:02.2]}
2... c6 {[%clk 0:03:01.4]} 3. Nf3 {[%clk 0:03:00.4]} 3... Nf6 {[%clk 0:03:02.3]}
4. Nc3 {[%clk 0:02:59.4]} 4... e6 {[%clk 0:03:03.4]} 5. Bg5 {[%clk 0:02:59.4]}
5... dxc4 {[%clk 0:03:03.6]} 6. e4 {[%clk 0:03:00.2]} 6... b5 {[%clk 0:03:04.4]}
7. e5 {[%clk 0:03:01.3]} 7... h6 {[%clk 0:03:05.4]} 8. Bh4 {[%clk 0:03:02.6]}
8... g5 {[%clk 0:03:06.7]} 9. Nxg5 {[%clk 0:03:04]} 9... hxg5 {[%clk 0:03:08.6]}
10. Bxg5 {[%clk 0:03:05.6]} 10... Nbd7 {[%clk 0:03:10.4]} 11. exf6 {[%clk
0:03:06.6]} 11... Bb7 {[%clk 0:03:11.1]} 12. g3 {[%clk 0:03:08]} 12... c5 {[%clk
0:03:12.6]} 13. d5 {[%clk 0:03:08.8]} 13... Qb6 {[%clk 0:03:13.9]} 14. Bg2
{[%clk 0:03:09.4]} 14... O-O-O {[%clk 0:03:15.1]} 15. O-O {[%clk 0:03:07.3]}
15... b4 {[%clk 0:03:16.3]} 16. Rb1 {[%clk 0:03:07.5]} 16... Qa6 {[%clk
0:03:17.1]} 17. dxe6 {[%clk 0:03:08.5]} 17... Bxg2 {[%clk 0:03:17.5]} 18. e7
{[%clk 0:03:09.7]} 18... Bxf1 {[%clk 0:03:13.9]} 19. Kxf1 {[%clk 0:03:08.4]}
19... Bxe7 {[%clk 0:02:27.9]} 20. fxe7 {[%clk 0:02:57]} 20... Rdg8 {[%clk
0:02:28.8]} 21. Ne4 {[%clk 0:02:57.3]} 21... Rxh2 {[%clk 0:02:09.7]} 22. Kg1
{[%clk 0:02:27.4]} 22... Rgh8 {[%clk 0:01:58]} 23. Nd6+ {[%clk 0:02:13.5]} 23...
Kc7 {[%clk 0:01:43.5]} 24. e8=N+ {[%clk 0:01:03.2]} 24... Kb8 {[%clk 0:01:22.1]}
25. Bh4 {[%clk 0:01:01.6]} 25... R2xh4 {[%clk 0:01:02.7]} 26. gxh4 {[%clk
0:01:03.5]} 26... Rg8+ {[%clk 0:00:59]} 27. Kf1 {[%clk 0:00:51.3]} 27... c3+
{[%clk 0:00:57]} 28. Qe2 {[%clk 0:00:46.7]} 28... Rg1+ {[%clk 0:00:34.4]} 29.
Kxg1 {[%clk 0:00:47.6]} 29... Qxe2 {[%clk 0:00:36.1]} 30. bxc3 {[%clk
0:00:48.6]} 30... Qg4+ {[%clk 0:00:29.6]} 31. Kh2 {[%clk 0:00:47.4]} 31... Qxh4+
{[%clk 0:00:29.8]} 32. Kg1 {[%clk 0:00:47.2]} 32... Qg4+ {[%clk 0:00:31.7]} 33.
Kh2 {[%clk 0:00:46.9]} 33... Qh5+ {[%clk 0:00:31.9]} 34. Kg3 {[%clk 0:00:43]}
34... Qg6+ {[%clk 0:00:32.9]} 35. Kf4 {[%clk 0:00:44.1]} 35... Qxb1 {[%clk
0:00:34.8]} 36. cxb4 {[%clk 0:00:45.3]} 36... Qxb4+ {[%clk 0:00:34]} 37. Kf5
{[%clk 0:00:35.7]} 37... Qb1+ {[%clk 0:00:34.8]} 38. Kf4 {[%clk 0:00:35.9]}
38... Qxa2 {[%clk 0:00:32.9]} 39. f3 {[%clk 0:00:30.5]} 39... Qe6 {[%clk
0:00:31.8]} 40. Kg3 {[%clk 0:00:26.1]} 40... c4 {[%clk 0:00:31.8]} 41. Kf2
{[%clk 0:00:26.5]} 41... c3 {[%clk 0:00:33.1]} 0-1

[Event "*** Titled Tuesday 3|2 Blitz"]
[Site "Chess.com"]
[Date "2016.03.01"]
[Round "6"]
[White "maciek_92"]
[Black "Dlugy"]
[Result "1-0"]
[WhiteElo "2466"]
[BlackElo "2589"]
[TimeControl "180+2"]
[EndTime "18:15:31 PST"]
[Termination "maciek_92 won by resignation"]

1. c4 {[%clk 0:03:01.9]} 1... Nf6 {[%clk 0:03:00.3]} 2. Nc3 {[%clk 0:03:00.2]}
2... g6 {[%clk 0:03:01.5]} 3. g3 {[%clk 0:03:01.3]} 3... Bg7 {[%clk 0:03:02.7]}
4. Bg2 {[%clk 0:03:02.8]} 4... O-O {[%clk 0:03:04.6]} 5. d4 {[%clk 0:03:04]}
5... d6 {[%clk 0:03:06.3]} 6. Nf3 {[%clk 0:03:05]} 6... c6 {[%clk 0:03:07.8]} 7.
O-O {[%clk 0:03:06]} 7... Qa5 {[%clk 0:03:09.4]} 8. h3 {[%clk 0:03:06.9]} 8...
e5 {[%clk 0:03:09.8]} 9. Bd2 {[%clk 0:02:58.9]} 9... Nbd7 {[%clk 0:02:49.4]} 10.
Rc1 {[%clk 0:02:56.2]} 10... Qc7 {[%clk 0:02:48]} 11. e4 {[%clk 0:02:51.2]}
11... exd4 {[%clk 0:02:36.4]} 12. Nxd4 {[%clk 0:02:53.1]} 12... Nc5 {[%clk
0:02:31.6]} 13. Bf4 {[%clk 0:02:46.6]} 13... Rd8 {[%clk 0:02:29.1]} 14. Re1
{[%clk 0:02:35.5]} 14... Qb6 {[%clk 0:02:22.7]} 15. b3 {[%clk 0:02:32.9]} 15...
a5 {[%clk 0:02:21.6]} 16. Rb1 {[%clk 0:02:19.8]} 16... Nh5 {[%clk 0:02:21.2]}
17. Be3 {[%clk 0:02:19.1]} 17... Qc7 {[%clk 0:02:18]} 18. Qd2 {[%clk 0:02:15.5]}
18... Re8 {[%clk 0:02:18.5]} 19. Rbd1 {[%clk 0:02:08.9]} 19... Bd7 {[%clk
0:02:11.6]} 20. Nde2 {[%clk 0:01:43.2]} 20... Be6 {[%clk 0:01:47.7]} 21. Qxd6
{[%clk 0:01:41.4]} 21... Qxd6 {[%clk 0:01:48.9]} 22. Rxd6 {[%clk 0:01:42.8]}
22... Na6 {[%clk 0:01:49.6]} 23. Red1 {[%clk 0:01:37]} 23... Nb4 {[%clk
0:01:40.8]} 24. R6d2 {[%clk 0:01:27]} 24... h6 {[%clk 0:01:19.6]} 25. a3 {[%clk
0:01:00.9]} 25... Na6 {[%clk 0:01:19.9]} 26. Bb6 {[%clk 0:01:02.2]} 26... Bf8
{[%clk 0:01:16.9]} 27. Nb1 {[%clk 0:00:53.8]} 27... Nc5 {[%clk 0:01:15.8]} 28.
Nd4 {[%clk 0:00:43.2]} 28... Ra6 {[%clk 0:01:11]} 29. Bc7 {[%clk 0:00:43.2]}
29... Bc8 {[%clk 0:01:05.2]} 30. e5 {[%clk 0:00:31.1]} 30... Ng7 {[%clk
0:01:01.8]} 31. Bd6 {[%clk 0:00:31]} 31... Nf5 {[%clk 0:00:56.3]} 32. Bxf8
{[%clk 0:00:31]} 32... Kxf8 {[%clk 0:00:56.7]} 33. b4 {[%clk 0:00:28]} 33...
axb4 {[%clk 0:00:54.9]} 34. axb4 {[%clk 0:00:29.9]} 34... Nxd4 {[%clk
0:00:52.9]} 35. Rxd4 {[%clk 0:00:31.8]} 35... Ne6 {[%clk 0:00:54.3]} 36. R4d3
{[%clk 0:00:28.5]} 36... Ra4 {[%clk 0:00:55.4]} 37. Rb3 {[%clk 0:00:29.5]} 37...
Nc7 {[%clk 0:00:56.6]} 38. f4 {[%clk 0:00:29.5]} 38... Be6 {[%clk 0:00:57.6]}
39. Nd2 {[%clk 0:00:29.3]} 39... Rd8 {[%clk 0:00:58.6]} 40. Rbb1 {[%clk
0:00:28.8]} 40... Rd4 {[%clk 0:00:56.4]} 41. b5 {[%clk 0:00:24.5]} 41... Ra2
{[%clk 0:00:48.9]} 42. bxc6 {[%clk 0:00:19.9]} 42... bxc6 {[%clk 0:00:49.1]} 43.
Nf1 {[%clk 0:00:12.4]} 43... Rxd1 {[%clk 0:00:32.6]} 44. Rxd1 {[%clk 0:00:13.2]}
44... Bxc4 {[%clk 0:00:33.7]} 45. Bxc6 {[%clk 0:00:13.9]} 45... Bxf1 {[%clk
0:00:31]} 46. Kxf1 {[%clk 0:00:14.4]} 46... h5 {[%clk 0:00:32.3]} 47. h4 {[%clk
0:00:14.5]} 47... Rc2 {[%clk 0:00:32.9]} 48. Be4 {[%clk 0:00:15.2]} 48... Rc3
{[%clk 0:00:33.2]} 49. Rd3 {[%clk 0:00:14.5]} 49... Rc4 {[%clk 0:00:31.9]} 50.
Bf3 {[%clk 0:00:14.4]} 50... Ne6 {[%clk 0:00:32.7]} 51. Kf2 {[%clk 0:00:15]}
51... Nd4 {[%clk 0:00:33.6]} 52. Bd5 {[%clk 0:00:14.6]} 52... Rc2+ {[%clk
0:00:34.7]} 53. Kf1 {[%clk 0:00:11.4]} 53... Nf5 {[%clk 0:00:31.8]} 54. Be4
{[%clk 0:00:11.7]} 54... Nh6 {[%clk 0:00:33]} 55. Bf3 {[%clk 0:00:12.1]} 55...
Ke7 {[%clk 0:00:31.7]} 56. Be2 {[%clk 0:00:12]} 56... Nf5 {[%clk 0:00:31.5]} 57.
Kf2 {[%clk 0:00:11.5]} 57... Rb2 {[%clk 0:00:32.8]} 58. Ke1 {[%clk 0:00:09.1]}
58... Rb1+ {[%clk 0:00:31.9]} 59. Kf2 {[%clk 0:00:09.5]} 59... Rb2 {[%clk
0:00:33.2]} 60. Kf1 {[%clk 0:00:05.2]} 60... Ke6 {[%clk 0:00:33.1]} 61. Kf2
{[%clk 0:00:06.1]} 61... Ne7 {[%clk 0:00:31.8]} 62. Kf3 {[%clk 0:00:04.9]} 62...
Nf5 {[%clk 0:00:30.4]} 63. Kf2 {[%clk 0:00:02.8]} 63... Ke7 {[%clk 0:00:30.3]}
64. Kf1 {[%clk 0:00:03.4]} 64... Rb4 {[%clk 0:00:27.9]} 65. Kf2 {[%clk
0:00:04.4]} 65... Ra4 {[%clk 0:00:28.2]} 66. Rd2 {[%clk 0:00:05]} 66... Nd4
{[%clk 0:00:29.1]} 67. Bd3 {[%clk 0:00:05.7]} 67... Ke6 {[%clk 0:00:27.9]} 68.
Ke3 {[%clk 0:00:05.3]} 68... Nb3 {[%clk 0:00:21.7]} 69. Rc2 {[%clk 0:00:04.5]}
69... Nd4 {[%clk 0:00:15.8]} 70. Bc4+ {[%clk 0:00:03.9]} 70... Kf5 {[%clk
0:00:15.7]} 71. Kxd4 {[%clk 0:00:04.7]} 71... Kg4 {[%clk 0:00:17.6]} 72. Rc3
{[%clk 0:00:06.2]} 72... Ra7 {[%clk 0:00:17.3]} 73. Ke4 {[%clk 0:00:07]} 73...
Re7 {[%clk 0:00:17.4]} 74. Be2+ {[%clk 0:00:08.2]} 74... Kh3 {[%clk 0:00:18.8]}
75. f5 {[%clk 0:00:05.7]} 75... f6 {[%clk 0:00:19.4]} 76. e6 {[%clk 0:00:06.6]}
76... g5 {[%clk 0:00:20.9]} 77. hxg5 {[%clk 0:00:07.1]} 77... fxg5 {[%clk
0:00:22.4]} 78. Bxh5 {[%clk 0:00:08.4]} 78... g4 {[%clk 0:00:23.7]} 79. Bf7
{[%clk 0:00:08.8]} 79... Ra7 {[%clk 0:00:23.8]} 80. f6 {[%clk 0:00:10.1]} 80...
Ra3 {[%clk 0:00:25.1]} 81. Rxa3 {[%clk 0:00:10.1]} 1-0

[Event "*** Titled Tuesday 3|2 Blitz"]
[Site "Chess.com"]
[Date "2016.03.01"]
[Round "7"]
[White "kikydu96"]
[Black "Iwannabetheguy"]
[Result "1-0"]
[WhiteElo "2270"]
[BlackElo "2002"]
[TimeControl "180+2"]
[EndTime "18:22:36 PST"]
[Termination "kikydu96 won by resignation"]

1. e4 {[%clk 0:03:01.9]} 1... e5 {[%clk 0:03:00.3]} 2. Nf3 {[%clk 0:03:02.6]}
2... Nc6 {[%clk 0:03:01.6]} 3. d4 {[%clk 0:02:59.3]} 3... exd4 {[%clk
0:03:01.9]} 4. Nxd4 {[%clk 0:03:01.2]} 4... Nf6 {[%clk 0:03:02.7]} 5. Nc3 {[%clk
0:03:02.2]} 5... Bb4 {[%clk 0:03:04.2]} 6. Nxc6 {[%clk 0:03:03.4]} 6... bxc6
{[%clk 0:03:04.8]} 7. Bd3 {[%clk 0:03:05.1]} 7... d5 {[%clk 0:03:05.4]} 8. exd5
{[%clk 0:03:07]} 8... cxd5 {[%clk 0:03:06.8]} 9. O-O {[%clk 0:03:08.5]} 9... O-O
{[%clk 0:03:07.6]} 10. h3 {[%clk 0:03:10.2]} 10... c6 {[%clk 0:03:03.6]} 11. Qf3
{[%clk 0:03:11.7]} 11... Rb8 {[%clk 0:03:00]} 12. Bf4 {[%clk 0:03:12.2]} 12...
Bd6 {[%clk 0:02:59.8]} 13. b3 {[%clk 0:03:13.7]} 13... Bxf4 {[%clk 0:02:56]} 14.
Qxf4 {[%clk 0:03:15.6]} 14... Be6 {[%clk 0:02:54.5]} 15. Ne2 {[%clk 0:03:16]}
15... Qa5 {[%clk 0:02:48.8]} 16. Nd4 {[%clk 0:03:15.5]} 16... Qc5 {[%clk
0:02:41.3]} 17. Rfe1 {[%clk 0:03:12.8]} 17... Rbe8 {[%clk 0:02:22.9]} 18. Nf5
{[%clk 0:03:03.1]} 18... Bxf5 {[%clk 0:02:18.6]} 19. Qxf5 {[%clk 0:03:05]} 19...
Qc3 {[%clk 0:02:15.3]} 20. Kf1 {[%clk 0:03:05.3]} 20... Ne4 {[%clk 0:02:04.3]}
21. Bxe4 {[%clk 0:02:44.7]} 21... dxe4 {[%clk 0:02:03.6]} 22. Rac1 {[%clk
0:02:46.1]} 22... e3 {[%clk 0:01:59.9]} 23. fxe3 {[%clk 0:02:42.2]} 23... Rxe3
{[%clk 0:02:00.6]} 24. Rxe3 {[%clk 0:02:43.2]} 24... Qxe3 {[%clk 0:01:59.7]} 25.
Rd1 {[%clk 0:02:44.7]} 25... Re8 {[%clk 0:01:54.4]} 26. Qf2 {[%clk 0:02:44.3]}
26... Qe7 {[%clk 0:01:29.2]} 27. Re1 {[%clk 0:02:41.4]} 27... Qxe1+ {[%clk
0:01:28.2]} 28. Qxe1 {[%clk 0:02:43.3]} 28... Rxe1+ {[%clk 0:01:29.3]} 29. Kxe1
{[%clk 0:02:45.2]} 29... Kf8 {[%clk 0:01:30.8]} 30. Ke2 {[%clk 0:02:46.3]} 30...
Ke7 {[%clk 0:01:32.4]} 31. Ke3 {[%clk 0:02:46.9]} 31... Kd6 {[%clk 0:01:33.9]}
32. Kd4 {[%clk 0:02:48.1]} 32... f5 {[%clk 0:01:29.7]} 33. b4 {[%clk 0:02:47.3]}
33... g5 {[%clk 0:01:29.8]} 34. c4 {[%clk 0:02:48.3]} 34... h5 {[%clk
0:01:27.9]} 35. a4 {[%clk 0:02:44.1]} 35... h4 {[%clk 0:01:20.3]} 36. c5+ {[%clk
0:02:42.4]} 36... Ke6 {[%clk 0:01:20.3]} 37. b5 {[%clk 0:02:43.4]} 37... cxb5
{[%clk 0:01:16.3]} 38. axb5 {[%clk 0:02:45.3]} 38... g4 {[%clk 0:01:17.8]} 39.
Ke3 {[%clk 0:02:40.4]} 39... gxh3 {[%clk 0:01:15.7]} 40. gxh3 {[%clk 0:02:40.8]}
40... Kd5 {[%clk 0:00:37.8]} 41. c6 {[%clk 0:02:40.7]} 41... Kd6 {[%clk
0:00:39.4]} 42. Kf4 {[%clk 0:02:40.8]} 42... a5 {[%clk 0:00:41]} 43. bxa6 {[%clk
0:02:39.3]} 43... Kxc6 {[%clk 0:00:42.1]} 44. Kxf5 {[%clk 0:02:40.4]} 44... Kb6
{[%clk 0:00:43.5]} 45. Kg4 {[%clk 0:02:41.3]} 45... Kxa6 {[%clk 0:00:45.1]} 46.
Kxh4 {[%clk 0:02:42.6]} 46... Kb6 {[%clk 0:00:46.6]} 47. Kg5 {[%clk 0:02:43.9]}
47... Kc7 {[%clk 0:00:48.3]} 48. Kf6 {[%clk 0:02:45]} 48... Kd7 {[%clk 0:00:50]}
49. Kf7 {[%clk 0:02:45]} 49... Kd6 {[%clk 0:00:51.2]} 50. h4 {[%clk 0:02:42.8]}
50... Ke5 {[%clk 0:00:52.3]} 51. h5 {[%clk 0:02:44.3]} 51... Kf5 {[%clk
0:00:53.9]} 52. h6 {[%clk 0:02:45.7]} 52... Kg5 {[%clk 0:00:55.5]} 1-0

[Event "*** Titled Tuesday 3|2 Blitz"]
[Site "Chess.com"]
[Date "2016.03.01"]
[Round "7"]
[White "Goala"]
[Black "josiwales"]
[Result "1-0"]
[WhiteElo "2241"]
[BlackElo "2097"]
[TimeControl "180+2"]
[EndTime "18:23:11 PST"]
[Termination "Goala won by resignation"]

1. d4 {[%clk 0:03:01.9]} 1... d5 {[%clk 0:02:57.8]} 2. c4 {[%clk 0:02:54]} 2...
e6 {[%clk 0:02:58.7]} 3. Nc3 {[%clk 0:02:55.6]} 3... c6 {[%clk 0:02:59.9]} 4. e3
{[%clk 0:02:56.8]} 4... f5 {[%clk 0:03:01.2]} 5. Qc2 {[%clk 0:02:52.6]} 5... Nf6
{[%clk 0:03:01.7]} 6. Bd3 {[%clk 0:02:51.9]} 6... Bd6 {[%clk 0:03:02.4]} 7. Nge2
{[%clk 0:02:51.6]} 7... O-O {[%clk 0:03:03.2]} 8. f3 {[%clk 0:02:52.4]} 8... Bd7
{[%clk 0:03:01.8]} 9. Bd2 {[%clk 0:02:53.6]} 9... Be8 {[%clk 0:03:00.8]} 10.
O-O-O {[%clk 0:02:54.5]} 10... Nbd7 {[%clk 0:03:01.2]} 11. h3 {[%clk 0:02:55.8]}
11... Rc8 {[%clk 0:02:57.4]} 12. Kb1 {[%clk 0:02:56.5]} 12... a6 {[%clk
0:02:56.7]} 13. e4 {[%clk 0:02:57.6]} 13... fxe4 {[%clk 0:02:52.7]} 14. fxe4
{[%clk 0:02:58.8]} 14... dxe4 {[%clk 0:02:53.7]} 15. Nxe4 {[%clk 0:03:00.1]}
15... Nxe4 {[%clk 0:02:54.7]} 16. Bxe4 {[%clk 0:03:01.3]} 16... Nf6 {[%clk
0:02:56.1]} 17. Bd3 {[%clk 0:02:52.4]} 17... c5 {[%clk 0:02:55.9]} 18. Bc3
{[%clk 0:02:38.7]} 18... cxd4 {[%clk 0:02:54.9]} 19. Nxd4 {[%clk 0:02:38.9]}
19... Qe7 {[%clk 0:02:51]} 20. Rhe1 {[%clk 0:02:38.9]} 20... Bd7 {[%clk
0:02:37.6]} 21. Nf5 {[%clk 0:02:36.7]} 21... exf5 {[%clk 0:02:32.8]} 22. Rxe7
{[%clk 0:02:36.2]} 22... Bxe7 {[%clk 0:02:34.7]} 23. Bxf5 {[%clk 0:02:37.3]}
23... Bxf5 {[%clk 0:02:33.8]} 24. Qxf5 {[%clk 0:02:39.2]} 24... Kh8 {[%clk
0:02:31.9]} 25. Qe6 {[%clk 0:02:24]} 25... Rfe8 {[%clk 0:02:26.6]} 26. Qf7
{[%clk 0:02:17.7]} 26... b5 {[%clk 0:02:10.7]} 27. Rd7 {[%clk 0:01:35.6]} 27...
b4 {[%clk 0:01:49.9]} 28. Be5 {[%clk 0:01:06]} 1-0

[Event "*** Titled Tuesday 3|2 Blitz"]
[Site "Chess.com"]
[Date "2016.03.01"]
[Round "7"]
[White "Rating-Schmating"]
[Black "Recombinant"]
[Result "0-1"]
[WhiteElo "2251"]
[BlackElo "2205"]
[TimeControl "180+2"]
[EndTime "18:23:44 PST"]
[Termination "Recombinant won by resignation"]

1. e4 {[%clk 0:03:01.9]} 1... d6 {[%clk 0:03:00.8]} 2. d4 {[%clk 0:03:02.6]}
2... Nf6 {[%clk 0:03:01.9]} 3. Nc3 {[%clk 0:03:03.2]} 3... g6 {[%clk 0:03:02.9]}
4. Nf3 {[%clk 0:03:04.3]} 4... Bg7 {[%clk 0:03:03.8]} 5. h3 {[%clk 0:03:05.5]}
5... O-O {[%clk 0:03:05]} 6. Be2 {[%clk 0:03:05.5]} 6... b6 {[%clk 0:03:06.4]}
7. Be3 {[%clk 0:03:04.7]} 7... Bb7 {[%clk 0:03:07.6]} 8. e5 {[%clk 0:03:05.3]}
8... Ne4 {[%clk 0:03:06.8]} 9. Nxe4 {[%clk 0:03:04]} 9... Bxe4 {[%clk
0:03:07.1]} 10. exd6 {[%clk 0:03:05.1]} 10... cxd6 {[%clk 0:03:08]} 11. O-O
{[%clk 0:03:05.4]} 11... Nd7 {[%clk 0:03:06.7]} 12. Bd3 {[%clk 0:03:03.9]} 12...
Bxd3 {[%clk 0:03:05.4]} 13. Qxd3 {[%clk 0:03:04.5]} 13... Rc8 {[%clk 0:03:07]}
14. c3 {[%clk 0:03:05.3]} 14... Qc7 {[%clk 0:03:07.7]} 15. Rfe1 {[%clk
0:03:03.1]} 15... e6 {[%clk 0:03:03.9]} 16. Bf4 {[%clk 0:03:01.2]} 16... Qc6
{[%clk 0:03:04.9]} 17. Qd2 {[%clk 0:02:56.3]} 17... d5 {[%clk 0:02:57.3]} 18.
Ne5 {[%clk 0:02:55.5]} 18... Nxe5 {[%clk 0:02:58.3]} 19. Bxe5 {[%clk 0:02:56.5]}
19... b5 {[%clk 0:02:49.5]} 20. Qf4 {[%clk 0:02:48.5]} 20... a5 {[%clk
0:02:38.6]} 21. a3 {[%clk 0:02:48.1]} 21... Qc4 {[%clk 0:02:37.6]} 22. h4 {[%clk
0:02:34.6]} 22... h5 {[%clk 0:02:26.3]} 23. g3 {[%clk 0:02:35.4]} 23... Rfd8
{[%clk 0:02:20.7]} 24. Rac1 {[%clk 0:02:27.4]} 24... Qd3 {[%clk 0:02:20]} 25.
Kg2 {[%clk 0:02:12.3]} 25... Rc4 {[%clk 0:02:06.8]} 26. Bc7 {[%clk 0:02:00]}
26... Ra8 {[%clk 0:01:56.7]} 27. Be5 {[%clk 0:02:00.9]} 27... b4 {[%clk
0:01:53.9]} 28. axb4 {[%clk 0:02:01.1]} 28... axb4 {[%clk 0:01:54.8]} 29. Red1
{[%clk 0:01:57.6]} 29... Qf5 {[%clk 0:01:55.3]} 30. Qxf5 {[%clk 0:01:50.2]}
30... gxf5 {[%clk 0:01:55.8]} 31. Bxg7 {[%clk 0:01:50.6]} 31... Kxg7 {[%clk
0:01:56.3]} 32. Rc2 {[%clk 0:01:50.2]} 32... Ra2 {[%clk 0:01:48.6]} 33. Rdc1
{[%clk 0:01:48.9]} 33... Kg6 {[%clk 0:01:35.7]} 34. Kf3 {[%clk 0:01:46.5]} 34...
bxc3 {[%clk 0:01:27.7]} 35. Rxc3 {[%clk 0:01:39.3]} 35... Rxd4 {[%clk
0:01:27.7]} 36. R3c2 {[%clk 0:01:28.5]} 36... Rb4 {[%clk 0:01:26]} 37. Rb1
{[%clk 0:01:29.6]} 37... Rb3+ {[%clk 0:01:26.1]} 38. Ke2 {[%clk 0:01:30]} 38...
d4 {[%clk 0:01:25.4]} 39. Kd2 {[%clk 0:01:30.7]} 39... e5 {[%clk 0:01:23.4]} 40.
Rc6+ {[%clk 0:01:30.4]} 40... f6 {[%clk 0:01:24.4]} 41. Kc2 {[%clk 0:01:31.8]}
41... Rb7 {[%clk 0:01:21.1]} 42. Kc1 {[%clk 0:01:24.4]} 42... e4 {[%clk
0:01:07.6]} 43. Kc2 {[%clk 0:01:22.3]} 43... d3+ {[%clk 0:01:05.3]} 44. Kc3
{[%clk 0:01:22.7]} 44... Raa7 {[%clk 0:00:58.3]} 45. b4 {[%clk 0:01:16.2]} 45...
Ra3+ {[%clk 0:00:58.3]} 46. Rb3 {[%clk 0:01:07.4]} 46... Ra1 {[%clk 0:00:58.8]}
47. Rb2 {[%clk 0:01:06.2]} 47... Rc1+ {[%clk 0:00:59.4]} 0-1

[Event "*** Titled Tuesday 3|2 Blitz"]
[Site "Chess.com"]
[Date "2016.03.01"]
[Round "7"]
[White "GMHess"]
[Black "GM_Huschenbeth"]
[Result "0-1"]
[WhiteElo "2604"]
[BlackElo "2426"]
[TimeControl "180+2"]
[EndTime "18:24:07 PST"]
[Termination "GM_Huschenbeth won by resignation"]

1. b3 {[%clk 0:03:01.9]} 1... e5 {[%clk 0:02:59.8]} 2. Bb2 {[%clk 0:03:02.7]}
2... Nc6 {[%clk 0:03:01.4]} 3. e3 {[%clk 0:03:04.3]} 3... Nf6 {[%clk 0:03:02.8]}
4. Bb5 {[%clk 0:03:05.9]} 4... Bd6 {[%clk 0:03:04.3]} 5. Ne2 {[%clk 0:03:07.5]}
5... a6 {[%clk 0:03:02.6]} 6. Bxc6 {[%clk 0:03:05.9]} 6... dxc6 {[%clk
0:03:04.5]} 7. Ng3 {[%clk 0:03:07.5]} 7... O-O {[%clk 0:03:05.4]} 8. h3 {[%clk
0:03:04.6]} 8... c5 {[%clk 0:03:06.2]} 9. Qf3 {[%clk 0:03:05.3]} 9... Qe7 {[%clk
0:03:01.5]} 10. d3 {[%clk 0:03:02.2]} 10... Re8 {[%clk 0:02:55.5]} 11. Nd2
{[%clk 0:03:02.7]} 11... Rb8 {[%clk 0:02:51.1]} 12. O-O-O {[%clk 0:02:50.3]}
12... b5 {[%clk 0:02:46.4]} 13. Nde4 {[%clk 0:02:51.4]} 13... Nxe4 {[%clk
0:02:43.8]} 14. dxe4 {[%clk 0:02:49.7]} 14... c4 {[%clk 0:02:29.7]} 15. Kb1
{[%clk 0:02:39.8]} 15... g6 {[%clk 0:02:19.3]} 16. Qe2 {[%clk 0:02:25.9]} 16...
Ba3 {[%clk 0:02:12.5]} 17. Ba1 {[%clk 0:02:16.5]} 17... a5 {[%clk 0:01:27.8]}
18. Rd5 {[%clk 0:02:10.6]} 18... Bd6 {[%clk 0:01:23.9]} 19. h4 {[%clk
0:01:27.1]} 19... h5 {[%clk 0:01:14]} 20. f4 {[%clk 0:01:06]} 20... Bg4 {[%clk
0:01:14.5]} 21. Qf2 {[%clk 0:00:56.7]} 21... c6 {[%clk 0:01:02.8]} 22. fxe5
{[%clk 0:00:29.7]} 22... cxd5 {[%clk 0:01:01]} 23. exd6 {[%clk 0:00:29.7]} 23...
Qxd6 {[%clk 0:01:01.3]} 24. exd5 {[%clk 0:00:27.6]} 24... Rbc8 {[%clk
0:00:41.1]} 25. e4 {[%clk 0:00:27.5]} 25... c3 {[%clk 0:00:40.6]} 26. Rf1 {[%clk
0:00:24.5]} 26... Re7 {[%clk 0:00:36]} 27. Ne2 {[%clk 0:00:21]} 27... Bxe2
{[%clk 0:00:33.9]} 28. Qxe2 {[%clk 0:00:21.6]} 28... b4 {[%clk 0:00:35.8]} 29.
g4 {[%clk 0:00:22.5]} 29... Qxd5 {[%clk 0:00:36.1]} 30. gxh5 {[%clk 0:00:17.1]}
30... Qxe4 {[%clk 0:00:33.8]} 31. Qf2 {[%clk 0:00:15.6]} 31... Rce8 {[%clk
0:00:32.7]} 32. a3 {[%clk 0:00:14.5]} 32... Qe2 {[%clk 0:00:26.6]} 33. Qf4
{[%clk 0:00:12.1]} 33... Qxf1+ {[%clk 0:00:27.3]} 0-1